[Event "45th FIDE Olympiad 2024"]
[Site "Budapest"]
[Date "2024.09.16"]
[Round "6.64"]
[White "Can, Emre"]
[Black "Noritsyn, Nikolay"]
[Result "1-0"]
[ECO "C02"]
[WhiteElo "2547"]
[BlackElo "2451"]
[Annotator "TA"]
[PlyCount "109"]
[EventDate "2024.09.05"]
[EventType "team-tourn"]
[EventCountry "HUN"]
[SourceTitle "playchess.com"]
[Source "ChessBase"]
[SourceQuality "1"]
[WhiteTeam "Turkiye"]
[BlackTeam "Canada"]
[BlackTeamCountry "CAN"]
[TimeControl "40/5400+30:1800+30"]

{[%evp 37,109,55,56,46,110,111,115,112,115,116,120,117,120,114,114,127,116,109,121,119,208,54,58,38,36,36,50,48,87,75,93,77,97,76,72,74,85,88,173,192,170,145,137,159,272,273,272,177,293,242,317,291,561,360,433,487,456,489,505,269,270,272,374,387,400,335,739,737,1583,1578,29976,29977,29975,29975]} 1. e4 {[%emt 0:00:09] Grandelius,Nils} e6 {[%emt 0:00:11]} 2. d4 {[%emt 0:00:20]} d5 {[%emt 0:00:06]} 3. e5 {[%emt 0:00:22]} c5 {[%emt 0:00:08]} 4. c3 {[%emt 0:00:16]} Nc6 {[%emt 0:00:07]} 5. Nf3 {[%emt 0:00:08]} Bd7 {[%emt 0:00:09]} 6. Be2 {[%emt 0:00:29]} Nge7 {[%emt 0:00:10]} 7. O-O {[%emt 0:03:54]} Nf5 {[%emt 0:00:21]} 8. dxc5 $1 {[%emt 0:01:15] 8.dxc5 is better than 8.Bd3. C02: French: Advance Variation.} a5 {[%emt 0:00:16]} 9. Bd3 {[%emt 0:00:59]} Bxc5 {[%emt 0:00:54]} 10. a4 {[%emt 0:00:11]} h6 {[%emt 0:10:48]} 11. Nbd2 {[%emt 0:00:30]} Ba7 12. Nb3 {[%emt 0:00:30]} Nh4 $146 {[%emt 0:01:00]} ({Predecessor:} 12... O-O 13. Bc2 Nh4 14. Nxh4 Qxh4 15. Qd3 f5 16. exf6 Rxf6 17. Be3 Ne5 18. Qh7+ Kf7 19. Bxa7 Rxa7 {1-0 Grandelius,N (2662)-Bluebaum,M (2640) FIDE Grand Swiss 2021 (11)}) 13. Bf4 {[%emt 0:00:30]} O-O {[%emt 0:00:30]} 14. Nxh4 {[%emt 0:00:30]} Qxh4 {[%emt 0:00:30]} 15. Bg3 {[%emt 0:00:30]} Qg5 {[%emt 0:00:30]} 16. Kh1 {[%emt 0:00:30]} f5 {[%emt 0:00:30]} 17. f4 {[%emt 0:00:30]} Qd8 {[%emt 0:00:30]} 18. Bf2 {[%emt 0:00:30]} Bxf2 {[%emt 0:00:30]} 19. Rxf2 {[%emt 0:00:30]} Qb6 {[%emt 0:00:30]} 20. Rd2 {[%emt 0:00:30]} g5 {[%emt 0:00:30]} ({Black should play} 20... Be8 $14) 21. Qh5 $1 $16 {[%emt 0:00:30]} Rf7 {[%emt 0:00:30]} 22. Bb5 {[%emt 0:00:30]} gxf4 {[%emt 0:00:30]} 23. Re1 $1 {[%emt 0:00:30]} (23. Qxh6 $6 Nxe5 24. Bxd7 Nxd7 $11) 23... Kg7 {[%emt 0:00:30]} 24. Nc1 $1 {[%emt 0:00:30]} Be8 {[%emt 0:00:30]} 25. Nd3 {[%emt 0:00:30]} Kh7 {[%emt 0:00:30]} 26. Nxf4 {[%emt 0:00:30]} Rg7 {[%emt 0:00:30]} 27. Qe2 {[%emt 0:00:30]} Bf7 {[%emt 0:00:30] [#]} 28. Rd3 $1 {[%emt 0:00:30]} Na7 {[%emt 0:00:30] [#]} (28... Rg5 $16 29. Qd2 Rd8) 29. Rh3 $2 {[%emt 0:00:30]} (29. Bd7 $1 $18) 29... Nxb5 $14 {[%emt 0:00:30]} 30. axb5 {[%emt 0:00:30]} (30. Qxb5 Qxb5 31. axb5 a4 $11) 30... Rag8 {[%emt 0:00:30]} 31. b3 {[%emt 0:00:30]} Rg5 {[%emt 0:00:30]} 32. Rd1 {[%emt 0:00:30]} Rg4 {[%emt 0:00:30]} 33. Qd2 {[%emt 0:00:30]} R8g5 {[%emt 0:00:30]} (33... Qxb5 $2 34. Nxd5 R8g6 35. c4 $18 (35. Nf6+ Rxf6 36. exf6 f4 $18)) 34. c4 {[%emt 0:00:30]} dxc4 {[%emt 0:00:30]} 35. bxc4 {[%emt 0:00:30]} Qc7 {[%emt 0:00:30]} 36. Qd4 {[%emt 0:00:30]} b6 {[%emt 0:00:30]} 37. Rf3 {[%emt 0:00:30]} Rg7 {[%emt 0:00:30]} (37... Rg8 $16) 38. h3 $18 {[%emt 0:00:30]} R4g5 {[%emt 0:00:30]} 39. Rc3 {[%emt 0:00:30]} Qb7 {[%emt 0:00:30]} 40. Rd2 {[%emt 0:00:30]} Bg8 {[%emt 0:00:30]} (40... Rg3 $16 {is a better defense.}) 41. Kh2 $18 {[%emt 0:30:30]} Rc7 {[%emt 0:30:30]} 42. Qe3 {[%emt 0:00:30]} Rc5 {[%emt 0:00:30]} (42... Qe4 $142) 43. Rd6 $18 {[%emt 0:00:30]} a4 {[%emt 0:00:30]} 44. Qd4 {[%emt 0:00:30]} (44. Nxe6 $2 Qxg2#) 44... Rg7 $2 {[%emt 0:00:30]} (44... Qe4 45. Qxe4 (45. Nxe6 $2 Qxg2#) 45... fxe4 46. Rxb6 e3) 45. Ra3 {[%emt 0:00:30]} (45. Nxe6 $2 Qxg2#) 45... Bf7 {[%emt 0:00:30]} 46. Rxa4 {[%emt 0:00:30]} (46. Nxe6 $2 Qxg2#) 46... Qe4 {[%emt 0:00:30]} 47. Qxe4 {[%emt 0:00:30]} (47. Nxe6 $2 Qxg2#) 47... fxe4 {[%emt 0:00:30]} 48. Nxe6 {[%emt 0:00:30]} Bxe6 {[%emt 0:00:30]} 49. Rxe6 {[%emt 0:00:30]} Rgc7 {[%emt 0:00:30]} 50. Kg3 {[%emt 0:00:30]} ({Not} 50. Rxb6 e3 $16) 50... Rf7 {[%emt 0:00:30]} 51. Rf6 {[%emt 0:00:30]} Rg7+ $2 {[%emt 0:00:30]} (51... Rxf6 52. exf6 Rf5) 52. Kf4 $18 {[%emt 0:00:30]} Rxg2 {[%emt 0:00:30]} 53. Ra7+ {[%emt 0:00:30]} Kg8 {[%emt 0:00:30]} 54. Rc6 {[%emt 0:00:30]} Rf2+ {[%emt 0:00:30]} 55. Ke3 {[%emt 0:00:30]} 1-0

[Event "45th FIDE Olympiad 2024"]
[Site "Budapest"]
[Date "2024.09.16"]
[Round "6.64"]
[White "Abdou, Ahmed Alem"]
[Black "Motlomelo, Lihloela"]
[Result "1/2-1/2"]
[WhiteElo "1897"]
[BlackElo "1696"]
[PlyCount "255"]
[EventDate "2024.09.05"]
[EventType "team-tourn"]
[EventCountry "HUN"]
[WhiteTeam "Mauritania"]
[BlackTeam "Lesotho"]
[WhiteTeamCountry "MAU"]
[BlackTeamCountry "LES"]
[TimeControl "40/5400+30:1800+30"]

1. d4 d5 2. Bf4 e6 3. e3 Bd6 4. Bg3 Nf6 5. Bd3 Bxg3 6. hxg3 c5 7. c3 cxd4 8. exd4 Qb6 9. Qb3 Qxb3 10. axb3 Bd7 11. Nf3 h6 12. Nbd2 Nc6 13. b4 O-O 14. b5 Ne7 15. Ke2 Nc8 16. b3 Nd6 17. c4 a6 18. bxa6 dxc4 19. Nxc4 Nxc4 20. Bxc4 bxa6 21. Rxa6 Rxa6 22. Bxa6 Ra8 23. Bd3 Ra2+ 24. Nd2 Nd5 25. Rc1 g6 26. Rc5 Kg7 27. Bc4 Nf6 28. Kd3 Kf8 29. b4 Ra3+ 30. Kc2 Ra7 31. b5 Rb7 32. Kc3 Ne8 33. Kb4 Nd6 34. Nb3 f6 35. Na5 Rb6 36. Rc7 Bxb5 37. Kc5 Nxc4 38. Nxc4 Rb8 39. Nd6 Be8 40. Rh7 h5 41. Rh8+ Ke7 42. f3 Rd8 43. g4 hxg4 44. fxg4 Rxd6 45. Rh7+ Bf7 46. Rxf7+ Kxf7 47. Kxd6 g5 48. Kc5 Ke7 49. Kc6 e5 50. dxe5 fxe5 51. Kd5 Kf6 52. Ke4 Ke6 53. g3 Kd6 54. Kf5 Kd5 55. Kxg5 Kd4 56. Kh4 e4 57. g5 e3 58. g6 e2 59. g7 e1=Q 60. g8=Q Qh1+ 61. Kg4 Qe4+ 62. Kh5 Qh1+ 63. Kg5 Qc1+ 64. Kf6 Qc6+ 65. Kg5 Qc1+ 66. Kg6 Qc6+ 67. Kh7 Qe4+ 68. Qg6 Qh1+ 69. Kg7 Qb7+ 70. Kh6 Qh1+ 71. Qh5 Qc6+ 72. Kg5 Qd5+ 73. Kh4 Qh1+ 74. Kg4 Qe4+ 75. Kg5 Qe5+ 76. Kh4 Qf6+ 77. Qg5 Qh8+ 78. Kg4 Qc8+ 79. Kh5 Qe8+ 80. Qg6 Qe5+ 81. Kh6 Qh8+ 82. Kg5 Qe5+ 83. Kh4 Qe7+ 84. Qg5 Qh7+ 85. Kg4 Qd7+ 86. Kh4 Qh7+ 87. Qh5 Qe7+ 88. Kh3 Ke3 89. g4 Qe4 90. Qg5+ Ke2 91. Qb5+ Ke1 92. Qa5+ Ke2 93. Qa2+ Kf1 94. Qa1+ Ke2 95. Qb2+ Ke1 96. Qc3+ Ke2 97. Kg3 Qe6 98. Qf3+ Kd2 99. Qf4+ Kd1 100. g5 Qe1+ 101. Kg4 Qg1+ 102. Kf5 Qc5+ 103. Kg6 Qc6+ 104. Qf6 Qe4+ 105. Kg7 Qb7+ 106. Qf7 Qb2+ 107. Kg8 Qb8+ 108. Kh7 Qh2+ 109. Kg7 Qe5+ 110. Qf6 Qc7+ 111. Kg6 Qc2+ 112. Kf7 Qc7+ 113. Qe7 Qf4+ 114. Kg6 Qc4 115. Qd6+ Kc1 116. Kh5 Qe2+ 117. Kh6 Qg4 118. g6 Qh3+ 119. Kg7 Qc3+ 120. Qf6 Qc7+ 121. Qf7 Qe5+ 122. Kg8 Qb8+ 123. Qf8 Qb3+ 124. Kh7 Qd3 125. Qc8+ Kd2 126. Kh8 Qxg6 127. Qg8 Qxg8+ 128. Kxg8 1/2-1/2

[Event "45th FIDE Olympiad 2024"]
[Site "Budapest"]
[Date "2024.09.16"]
[Round "6.65"]
[White "Haring, Filip"]
[Black "Theodorou, Nikolas"]
[Result "1/2-1/2"]
[ECO "C42"]
[WhiteElo "2503"]
[BlackElo "2619"]
[Annotator "TA"]
[PlyCount "147"]
[EventDate "2024.09.05"]
[EventType "team-tourn"]
[EventCountry "HUN"]
[SourceTitle "playchess.com"]
[Source "ChessBase"]
[SourceQuality "1"]
[WhiteTeam "Slovakia"]
[BlackTeam "Greece"]
[WhiteTeamCountry "SVK"]
[BlackTeamCountry "GRE"]
[TimeControl "40/5400+30:1800+30"]

{[%evp 55,146,67,103,96,96,59,59,59,59,59,59,59,59,59,59,59,59,59,59,59,59,59,59,59,77,59,59,59,59,59,59,0,59,59,59,59,59,59,59,59,59,54,54,12,12,12,14,14,14,12,12,12,20,20,20,20,20,20,20,20,20,20,20,16,20,20,28,28,28,28,28,28,28,28,28,28,28,28,28,28,641,641,641,641,641,641,641,641,641,641,641,641,641]} 1. e4 e5 2. Nf3 Nf6 3. Nxe5 d6 4. Nf3 Nxe4 5. Nc3 Nf6 6. d4 Be7 7. Bd3 O-O 8. h3 {C42: Petroff Defence: 3 Nxe5 and unusual White 3rd moves.} d5 9. O-O c5 10. dxc5 Bxc5 11. Ne2 Nc6 $146 ({Predecessor:} 11... h6 12. c3 Nc6 13. Bf4 Re8 14. Qb3 Qb6 15. Qxb6 Bxb6 16. Rfe1 Bd7 17. Rad1 Re6 {½-½ Hoehne,V (1832)-Yuryev,A (1917) SB-2014-0-00352}) 12. c3 Ne4 13. Bc2 Re8 14. Ned4 Nxd4 15. Nxd4 Qb6 16. Bb3 Qg6 17. Bxd5 Bxh3 18. Qf3 Bd7 19. Bf4 Bg4 20. Qd3 Rad8 21. Bxb7 Re7 22. Bxe4 Rxe4 23. Qg3 Qf6 24. Bc7 Rde8 25. f3 Rxd4 26. cxd4 Bxd4+ 27. Kh1 Be6 28. Qf4 Rc8 29. Qxf6 Bxf6 30. Rac1 Bxb2 31. Rb1 Bf6 32. Rb8 Rxb8 $1 33. Bxb8 Bxa2 34. Bxa7 h5 35. Rd1 Be6 36. Bd4 Bxd4 37. Rxd4 g5 38. g3 Kg7 39. Kg2 Kf6 40. Kf2 Kg6 41. Ra4 Bd7 42. Ra7 Be6 43. Ra4 Bd7 $1 44. Rb4 Be6 45. Ke3 Bh3 46. Rb8 Kg7 47. Rb5 Kg6 48. f4 f6 49. fxg5 fxg5 50. Rb6+ Kg7 51. Ra6 Kh7 52. Ra2 Kg6 53. Rh2 Bf5 54. Kd4 h4 55. gxh4 gxh4 56. Rxh4 Kg5 57. Rh2 Kf6 58. Rf2 Ke6 59. Ra2 Kf6 60. Ra6+ Kg7 61. Ke5 Bd3 62. Rd6 Bc2 63. Rf6 Bd3 64. Ke6 Bc2 65. Ke7 Bd3 66. Rf3 Bc2 67. Rg3+ Kh8 $2 {[%mdl 8192]} (67... Kh6 $11) 68. Kf6 Be4 69. Rh3+ Kg8 70. Re3 Bc2 71. Rg3+ Kh8 {[#]} 72. Kf7 $1 Be4 73. Rh3+ Bh7 74. Rh6 1/2-1/2

[Event "45th FIDE Olympiad 2024"]
[Site "Budapest"]
[Date "2024.09.16"]
[Round "6.65"]
[White "Hamperl, Fred"]
[Black "Kamara, Ansumana"]
[Result "1-0"]
[WhiteElo "1977"]
[BlackElo "1876"]
[PlyCount "162"]
[EventDate "2024.09.05"]
[EventType "team-tourn"]
[EventCountry "HUN"]
[WhiteTeam "Guernsey"]
[BlackTeam "Sierra Leone"]
[BlackTeamCountry "SIE"]
[TimeControl "40/5400+30:1800+30"]

1. e4 e5 2. Nf3 Nc6 3. Nc3 Nf6 4. d4 exd4 5. Nxd4 Nxd4 6. Qxd4 d6 7. Bc4 Be7 8. O-O O-O 9. h3 a6 10. a4 c6 11. Bf4 c5 12. Qd3 Qc7 13. Rad1 Rd8 14. Rfe1 Be6 15. Nd5 Bxd5 16. Bxd5 Rac8 17. c4 Nxd5 18. Qxd5 Qc6 19. b3 h6 20. Qf5 Bf6 21. Bxd6 Bd4 22. Bf4 Qb6 23. Rb1 Rc6 24. e5 Rg6 25. Re2 Qc6 26. Qe4 Qe6 27. Be3 Bxe5 28. Bxc5 Qxh3 29. f4 Qc8 30. Bb6 Rxb6 31. fxe5 Re6 32. Rbe1 Qc5+ 33. Kf1 b5 34. cxb5 axb5 35. b4 Qb6 36. a5 Qa7 37. Qc2 Rd4 38. Re4 g6 39. Qc3 Rd5 40. Rc1 Kg7 41. Qc7 Qa8 42. Re2 Qe8 43. Rc5 Rd4 44. Rb2 Rd7 45. Qc8 Qxc8 46. Rxc8 Rxe5 47. Rc5 Kf6 48. Rf2+ Ke6 49. Rc6+ Ke7 50. Rb2 h5 51. Rb6 Rc7 52. Re2 Rc1+ 53. Kf2 Rxe2+ 54. Kxe2 Rc2+ 55. Kf3 Rc3+ 56. Kf2 Rc2+ 57. Kg1 Rb2 58. Rxb5 Kd6 59. Rb7 Ra2 60. Rxf7 Ra4 61. Rb7 g5 62. Kf2 Kc6 63. Rb6+ Kc7 64. Rb5 h4 65. Rxg5 Rxb4 66. Kf3 Rb3+ 67. Kg4 Rb4+ 68. Kh3 Ra4 69. Rg4 Rxa5 70. Kxh4 Kd6 71. Re4 Kd5 72. Re8 Kd6 73. g4 Ra7 74. g5 Rh7+ 75. Kg4 Re7 76. Rf8 Rh7 77. g6 Rh1 78. Re8 Kd7 79. Re4 Rh8 80. Kg5 Re8 81. Rxe8 Kxe8 1-0

[Event "45th FIDE Olympiad 2024"]
[Site "Budapest"]
[Date "2024.09.16"]
[Round "6.66"]
[White "Kourkoulos-Arditis, Stamatis"]
[Black "Sahidi, Samir"]
[Result "1/2-1/2"]
[ECO "B92"]
[WhiteElo "2570"]
[BlackElo "2474"]
[Annotator "RC"]
[PlyCount "71"]
[EventDate "2024.09.05"]
[EventType "team-tourn"]
[EventCountry "HUN"]
[SourceTitle "playchess.com"]
[Source "ChessBase"]
[SourceQuality "1"]
[WhiteTeam "Greece"]
[BlackTeam "Slovakia"]
[WhiteTeamCountry "GRE"]
[BlackTeamCountry "SVK"]
[TimeControl "40/5400+30:1800+30"]

1. e4 c5 2. Nf3 d6 3. d4 cxd4 4. Nxd4 Nf6 5. Nc3 a6 6. Be2 e5 7. Nb3 Be6 8. f4 Qc7 9. f5 Bc4 10. Bg5 Nbd7 11. Bxc4 Qxc4 12. Qd3 Qxd3 13. cxd3 Be7 14. Rc1 Bd8 15. Ke2 h6 16. Bxf6 Nxf6 17. Nd2 b5 18. Nd5 Kd7 19. h4 h5 20. g3 Rg8 21. Rhf1 Rc8 22. Rxc8 Kxc8 23. Rc1+ Kb7 24. Nxf6 Bxf6 25. Nf1 Rc8 26. Rxc8 Kxc8 27. Ne3 Kd7 28. Nd5 Bd8 29. Kf3 g6 30. b4 Kc6 31. f6 Kd7 32. g4 Ke6 33. g5 Kd7 34. Ke2 Kc6 35. d4 Bb6 36. Nxb6 1/2-1/2

[Event "45th FIDE Olympiad 2024"]
[Site "Budapest"]
[Date "2024.09.16"]
[Round "6.66"]
[White "Winston Gerald, Mansfield Thomas"]
[Black "Brookfield, Toby"]
[Result "1-0"]
[WhiteElo "1950"]
[BlackElo "1872"]
[PlyCount "105"]
[EventDate "2024.09.05"]
[EventType "team-tourn"]
[EventCountry "HUN"]
[WhiteTeam "Sierra Leone"]
[BlackTeam "Guernsey"]
[WhiteTeamCountry "SIE"]
[TimeControl "40/5400+30:1800+30"]

1. d4 Nf6 2. c4 c5 3. d5 e6 4. dxe6 fxe6 5. Nc3 Be7 6. Bg5 O-O 7. Nf3 Nc6 8. e3 b6 9. Be2 Bb7 10. O-O Ne8 11. Bf4 Nf6 12. Bd6 Bxd6 13. Qxd6 Ne8 14. Qg3 d5 15. Qh3 Rf6 16. Rad1 Rh6 17. Qg3 Nf6 18. Ne5 Qe7 19. Rd2 d4 20. Nxc6 Bxc6 21. Bf3 dxc3 22. Bxc6 Rc8 23. Qd6 Qxd6 24. Rxd6 cxb2 25. Bf3 Rh4 26. Be2 Ne4 27. Rd3 Kf7 28. g3 Rh6 29. f3 Nf6 30. Rb1 Ke7 31. Rxb2 Rd8 32. Rbd2 Rxd3 33. Rxd3 e5 34. f4 Nd7 35. Kg2 exf4 36. exf4 Rd6 37. Kf3 Rxd3+ 38. Bxd3 h6 39. Ke4 Ke6 40. f5+ Kd6 41. g4 Ne5 42. Be2 Nc6 43. a3 Nd4 44. Bd3 a6 45. a4 Kc6 46. h4 b5 47. cxb5+ axb5 48. Bxb5+ Nxb5 49. axb5+ Kxb5 50. g5 hxg5 51. hxg5 Kc6 52. f6 gxf6 53. g6 1-0

[Event "45th FIDE Olympiad 2024"]
[Site "Budapest"]
[Date "2024.09.16"]
[Round "6.67"]
[White "Druska, Juraj"]
[Black "Papaioannou, Ioannis"]
[Result "0-1"]
[ECO "B92"]
[WhiteElo "2441"]
[BlackElo "2615"]
[Annotator "TA"]
[PlyCount "80"]
[EventDate "2024.09.05"]
[EventType "team-tourn"]
[EventCountry "HUN"]
[SourceTitle "playchess.com"]
[Source "ChessBase"]
[SourceQuality "1"]
[WhiteTeam "Slovakia"]
[BlackTeam "Greece"]
[WhiteTeamCountry "SVK"]
[BlackTeamCountry "GRE"]
[TimeControl "40/5400+30:1800+30"]

{[%evp 15,80,0,0,0,22,0,0,0,0,0,-5,0,0,0,0,0,0,-16,-9,-112,-33,-80,-82,-204,-174,-170,-179,-170,-180,-193,-173,-162,-147,-147,-111,-104,-109,-127,-97,-110,-77,-111,-106,-187,-191,-234,-142,-227,-215,-214,-210,-300,-304,-359,-349,-406,-390,-544,-569,-550,-525,-548,-531,-535,-595,-595,-582]} 1. e4 c5 2. Nf3 d6 3. d4 cxd4 4. Nxd4 Nf6 5. Nc3 a6 6. Be2 e5 7. Nf3 Be7 8. Bg5 Nbd7 9. a4 h6 10. Bxf6 Nxf6 11. Bc4 {The position is equal.} Be6 12. Qd3 Rc8 13. Nd2 O-O 14. O-O Qc7 15. Bb3 Qc5 16. Rfd1 Bd8 17. a5 Bg4 (17... Bxa5 $17 18. Bxe6 fxe6) 18. Rdb1 (18. Nf3 $15) 18... Bxa5 $17 19. Bxf7+ Rxf7 $19 (19... Kxf7 20. Nb3 Qc7 21. Nxa5) 20. Nb3 {[#]} Qb6 21. Nxa5 Be6 {Repels Nc4} 22. h3 {Repels Ng4} Nh5 23. Qe3 Qxe3 24. fxe3 Nf6 {Black has more active pieces.} 25. Rd1 Rd7 26. Nb3 Bf7 27. Rd3 Bg6 28. Nd2 Rc6 29. Ra4 (29. Kf1 $17) 29... b5 30. Rb4 Kf8 31. Kf2 (31. Nf1 $17 {might work better.}) 31... Ke7 32. Ke1 Rc5 33. Kd1 (33. g4 {keeps fighting.}) 33... Rdc7 34. g4 Be8 {[#] White must now prevent ...a5.} 35. Rb3 a5 {aiming for ...b4.} 36. Ne2 b4 {[%cal Oe8b5] Prevents Rbc3. Black is clearly winning.} 37. c3 Ba4 38. cxb4 axb4 {[%cal Oc5c2] Hoping for ...Rc2!} 39. Ke1 Bb5 40. Ng3 g6 {Inhibits Nf5+.   Weighted Error Value: White=0.33/Black=0.11 (very precise) .  Mistake:       	White=6     	Black=1      Inaccurate:     	White=3     	Black=1      OK:         	White=11    	Black=17     Best:        	White=3     	Black=1} 0-1

[Event "45th FIDE Olympiad 2024"]
[Site "Budapest"]
[Date "2024.09.16"]
[Round "6.67"]
[White "Owen, Garth I"]
[Black "Adeshole Beckley, Brian"]
[Result "1-0"]
[WhiteElo "1810"]
[BlackElo "1814"]
[PlyCount "101"]
[EventDate "2024.09.05"]
[EventType "team-tourn"]
[EventCountry "HUN"]
[WhiteTeam "Guernsey"]
[BlackTeam "Sierra Leone"]
[BlackTeamCountry "SIE"]
[TimeControl "40/5400+30:1800+30"]

1. c4 c6 2. Nf3 d5 3. b3 Nf6 4. g3 g6 5. Bb2 Bg7 6. Bg2 O-O 7. O-O Bf5 8. d3 Re8 9. Nbd2 Bg4 10. h3 Bxf3 11. Nxf3 e6 12. Qc2 Nbd7 13. e4 Qb6 14. e5 Nh5 15. d4 f6 16. c5 Qc7 17. exf6 Bxf6 18. Rae1 e5 19. dxe5 Nxe5 20. Nxe5 Bxe5 21. Rxe5 Rxe5 22. Qc3 Rae8 23. f4 Nxg3 24. Qxg3 Re2 25. Qc3 Rxb2 26. Qxb2 Qe7 27. Qf2 Qe2 28. Qxe2 Rxe2 29. Rf2 Re1+ 30. Kh2 Kg7 31. Bf3 Kf6 32. Bg4 Re7 33. Re2 Rxe2+ 34. Bxe2 Kf5 35. Kg3 Ke4 36. h4 d4 37. h5 a5 38. hxg6 hxg6 39. Kg4 d3 40. Bd1 Kd4 41. Kg5 Ke4 42. Kxg6 Kxf4 43. Kf6 Ke4 44. Ke6 Kd4 45. Kd6 Kc3 46. Kc7 Kd4 47. Kb6 Kd5 48. a3 Kd4 49. b4 axb4 50. axb4 Kc4 51. Kxb7 1-0

[Event "45th FIDE Olympiad 2024"]
[Site "Budapest"]
[Date "2024.09.16"]
[Round "6.68"]
[White "Kelires, Andreas"]
[Black "Kostolansky, Sebastian Lukas"]
[Result "1-0"]
[ECO "E06"]
[WhiteElo "2536"]
[BlackElo "2405"]
[Annotator "TA"]
[PlyCount "105"]
[EventDate "2024.09.05"]
[EventType "team-tourn"]
[EventCountry "HUN"]
[SourceTitle "playchess.com"]
[Source "ChessBase"]
[SourceQuality "1"]
[WhiteTeam "Greece"]
[BlackTeam "Slovakia"]
[WhiteTeamCountry "GRE"]
[BlackTeamCountry "SVK"]
[TimeControl "40/5400+30:1800+30"]

{[%evp 21,105,13,18,25,7,22,26,7,59,52,64,43,66,72,76,84,106,116,104,97,110,118,114,115,119,112,110,106,106,110,138,123,123,115,120,110,143,140,144,148,152,143,152,153,215,213,198,145,255,260,262,246,431,412,534,630,631,624,949,902,760,555,671,638,919,910,29961,29956,29967,29968,29987,29984,29991,29978,29976,29971,29978,29981,29987,29985,29985,29986,29986,29987,29987,29988]} 1. d4 Nf6 2. c4 e6 3. Nf3 d5 4. g3 Be7 5. Bg2 O-O 6. Nc3 dxc4 7. Ne5 Nc6 8. Bxc6 bxc6 9. Nxc6 Qe8 10. Nxe7+ Qxe7 11. Qa4 c5 12. dxc5 Qxc5 13. Be3 Qc7 14. f3 {Black is weak on the dark squares. White has an edge.} e5 (14... Nd5 $11 15. Bd4 Bb7) 15. O-O-O $14 Bb7 16. Qa3 {[%cal Oe3g5]} e4 17. f4 {White is much more active.} (17. Bxa7 $2 exf3 (17... Bc6 $2 18. Qc5 $19) 18. Qc5 Qxc5 19. Bxc5 Rfc8 $19) (17. Qc5 Qxc5 18. Bxc5 Rfc8 $15) 17... Ng4 18. Bc5 {[%cal Oc5d6] aiming for Bd6!} Rfc8 19. h3 $1 Nf6 {[%cal Oe4e3,Bg4f6,Bf6d5,Bd5c3][%mdl 32]} 20. Be3 Rd8 21. Rxd8+ (21. Bxa7 $2 Bd5 22. Nb5 Qb7 $19) 21... Rxd8 22. Qxa7 Nd5 {Against Bb6} 23. Rd1 {Strongly threatening Nxd5.} (23. Nxe4 $2 Re8 (23... Qe7 $2 24. Rd1 $19) 24. Qc5 Rxe4 25. Qxc7 Nxc7 $19) 23... Nxc3 24. Rxd8+ (24. bxc3 Ra8 25. Qc5 Qxc5 26. Bxc5 h5 $18) 24... Qxd8 {[%csl Gc3][%cal Rd8d1]} 25. bxc3 $16 {[%mdl 4096] Endgame. KQB-KQB} (25. Qxb7 $2 Qd1#) 25... Bc6 26. Bd4 Qe8 27. g4 h6 28. h4 Ba4 29. Kd2 Bd7 30. f5 h5 31. gxh5 Bxf5 {[%cal Oe4e3]} 32. Ke3 {[%cal Oh5h6]} f6 {[#]} (32... Kh7 $16 33. Qc5 Qe6) 33. h6 $1 $18 {[%mdl 512]} gxh6 (33... Qg6 34. Qxg7+) 34. Qa6 ({Better is} 34. Bxf6 $18 {[%csl Gf6][%cal Ra7g7]} Bd7 35. Bd4) 34... Be6 {[#]} (34... Qe6 $16 35. Qxe6+ Bxe6) 35. Qd6 $1 ({Don't play} 35. Bxf6 $6 Kf7 $16) 35... Kf7 36. Qf4 $1 (36. Kxe4 Bd7+ 37. Kf4 Qe6 38. Qxe6+ Kxe6 $16) 36... f5 (36... Kg6 37. Qxf6+ (37. Qxe4+ f5 $16) 37... Kh5) 37. Qxh6 {[%csl Gd4][%cal Rh6g7]} Ke7 38. Qg5+ Kd7 39. h5 {[%cal Bh4h5,Bh5h6][%mdl 32]} Qb8 40. Qg7+ Kc6 41. Qe5 Qg8 42. Kf2 {And now Be3 would win.} Bd5 43. h6 {Threatens to win with Qf6+.} e3+ 44. Bxe3 {White mates.} Qg2+ 45. Ke1 Be4 46. Qf6+ Kd5 47. Qd4+ Ke6 48. Qxc4+ Bd5 49. Qc8+ Ke5 50. Qc7+ Ke6 51. h7 Qh1+ 52. Kd2 Bb7 53. Qc4+ {Black did not feel at home in the position after the opening.   Weighted Error Value: White=0.12 (very precise) /Black=0.39.  Mistake:       	White=1     	Black=4      Inaccurate:     	---       	Black=1      OK:         	White=12    	Black=8      Best:        	White=2     	---        Strong:       	White=3     	---        Brilliant:      	White=1     	---} 1-0

[Event "45th FIDE Olympiad 2024"]
[Site "Budapest"]
[Date "2024.09.16"]
[Round "6.68"]
[White "Abdul, Rahman Toronka"]
[Black "Hill, Jonathan"]
[Result "0-1"]
[WhiteElo "1557"]
[BlackElo "1756"]
[PlyCount "120"]
[EventDate "2024.09.05"]
[EventType "team-tourn"]
[EventCountry "HUN"]
[WhiteTeam "Sierra Leone"]
[BlackTeam "Guernsey"]
[WhiteTeamCountry "SIE"]
[TimeControl "40/5400+30:1800+30"]

1. e4 c6 2. d4 d5 3. e5 e6 4. c3 c5 5. Nf3 Nc6 6. Be2 h6 7. Qc2 Bd7 8. Nbd2 Rc8 9. Nf1 cxd4 10. Qd3 dxc3 11. bxc3 Nge7 12. Bf4 Ng6 13. Bg3 Be7 14. Qe3 Nh4 15. Nxh4 Bxh4 16. Nd2 Bg5 17. Qd3 a6 18. Nf3 Be7 19. O-O Na5 20. Rfc1 Bb5 21. Qe3 Bc5 22. Bxb5+ axb5 23. Qe2 Nc4 24. Nd2 O-O 25. Nb3 Bb6 26. Nd4 Qd7 27. Rab1 Bxd4 28. cxd4 Na3 29. Rxc8 Rxc8 30. Rd1 Rc2 31. Rd2 Qc6 32. Rxc2 Qxc2 33. Qxc2 Nxc2 34. Bf4 Nxd4 35. Be3 Nc6 36. f4 Nb4 37. a3 Nc2 38. Bc5 Kh7 39. Kf1 Na1 40. Ke2 Nb3 41. Bb4 b6 42. Kd3 Nc5+ 43. Kd4 Nb3+ 44. Kc3 Nc5 45. Kd4 Nb7 46. Bd6 Kg6 47. g4 f5 48. h3 fxg4 49. hxg4 h5 50. gxh5+ Kxh5 51. f5 exf5 52. e6 Nxd6 53. Ke5 Ne8 54. Kxf5 d4 55. Ke4 d3 56. Kxd3 Kg5 57. Kc3 Kf6 58. Kb4 Nd6 59. a4 Kxe6 60. axb5 g5 {0-} 0-1